bitfinex-derivatives/quotes_ETHF0:USTF0_20250101
["timestamp","ask_amount","ask_price","bid_price","bid_amount"]
[1735751668619,0.4676,3332.2,3331.8,40.8]
[1735751668824,4.29189178,3332.3,3332.2,0.30074]
[1735751669217,3.2078,3332.3,3332.2,0.30074]
[1735751669423,4.108,3332.7,3332.6,0.30071]
[1735751669630,5.19209178,3332.7,3332.6,0.30071]
[1735751670330,4.108,3332.7,3332.6,0.30071]
[1735751671329,3.6559,3332.7,3332.6,0.30071]
[1735751671827,3.2078,3332.7,3332.6,0.30071]
[1735751672931,3.2078,3333.2,3333.1,0.30066]
[1735751673529,3.2078,3333.2,3333.0,0.30066]
[1735751673727,0.451,3333.1,3333.0,0.30066]
[1735751674024,0.451,3333.1,3332.5,2.28945715]
[1735751674025,0.30069,3332.8,3332.5,0.30071]
[1735751674333,0.30068,3332.9,3332.6,0.3007]
[1735751675031,0.30068,3332.9,3332.5,0.4491]
[1735751675032,0.8573,3333.0,3332.4,0.4451]
[1735751675329,0.3007,3332.8,3332.4,0.74582]
[1735751675927,0.3007,3332.8,3332.5,0.30071]
[1735751676330,0.3007,3332.7,3332.4,0.74582]
[1735751676534,0.30072,3332.5,3332.2,1.19614]
[1735751676736,0.4266,3332.6,3332.2,0.8954]
[1735751677135,0.72731,3332.6,3332.3,3.50853]
[1735751677538,0.4266,3332.6,3332.4,0.30072]
[1735751678230,3.2078,3332.5,3332.2,0.8954]
[1735751678438,3.50852,3332.5,3332.2,1.19614]
[1735751679332,3.50852,3332.5,3332.3,0.30073]
[1735751679537,0.30073,3332.4,3332.2,0.4491]
[1735751680034,0.30073,3332.3,3332.2,0.4491]
[1735751680439,4.0914,3332.5,3332.1,0.4597]
[1735751680739,0.30074,3332.3,3332.1,0.4597]
[1735751680936,4.0914,3332.5,3331.8,0.4459]
[1735751680937,0.30076,3332.0,3331.8,0.4459]
[1735751681137,0.4681,3331.9,3331.8,0.4459]
[1735751681326,0.4681,3331.9,3331.8,0.74668]
[1735751681938,0.4681,3331.9,3331.8,0.4459]
[1735751682438,0.76887,3331.9,3331.8,0.4459]
[1735751682934,0.4681,3331.9,3331.8,0.74668]
[1735751683137,0.76887,3331.9,3331.8,0.4459]
[1735751684038,6.22004,3331.9,3330.6,5.93862]
[1735751684343,3.50861,3331.4,3330.8,1.3591]
[1735751684535,3.50861,3331.4,3330.9,40.8]
[1735751684834,3.50861,3331.4,3331.2,0.30083]
[1735751685036,3.50861,3331.4,3331.1,0.30084]
[1735751685927,4.0835,3331.8,3331.0,2.28945715]
[1735751686234,0.30079,3331.7,3331.3,1.46173066]
[1735751686538,0.30079,3331.7,3331.6,0.30079]
[1735751687139,4.38428,3331.8,3331.4,1.3374]
[1735751687336,4.0835,3331.8,3331.6,0.30079]
[1735751687639,4.38429,3331.8,3331.6,0.30079]
[1735751687835,4.0835,3331.8,3331.7,0.30079]
[1735751688139,1.193,3332.5,3331.6,2.28945715]
[1735751688140,3.2078,3332.2,3331.6,2.28945715]
[1735751688326,3.2078,3332.2,3331.4,4.5452]
[1735751688327,0.30076,3332.1,3331.9,0.30077]
[1735751688733,0.30075,3332.1,3332.0,40.8]
[1735751690132,3.50855,3332.2,3331.5,3.04147715]
[1735751690534,3.50855,3332.2,3332.1,0.30075]
[1735751691431,0.30075,3332.1,3332.0,0.30076]
[1735751691637,0.30077,3332.0,3331.8,0.30077]
[1735751691838,0.30077,3332.0,3331.9,0.30077]
[1735751692141,0.30078,3331.9,3331.7,0.30078]
[1735751692634,0.30078,3331.8,3331.7,0.30078]
[1735751693737,3.2078,3332.2,3331.5,43.08945715]
[1735751693937,0.30076,3332.0,3331.9,0.30076]
[1735751694837,0.30075,3332.1,3331.7,0.30078]
[1735751695142,0.30078,3331.9,3331.8,0.30078]
[1735751695441,0.30076,3332.0,3331.9,0.30076]
[1735751696041,0.30076,3332.1,3332.0,0.30076]
[1735751696340,0.30077,3332.0,3331.9,0.30077]
[1735751696938,0.30076,3332.1,3332.0,0.30076]
[1735751697845,3.2078,3332.2,3332.1,0.30075]
[1735751698143,3.50854,3332.2,3332.1,0.30075]
[1735751698539,3.2078,3332.2,3332.1,0.30075]
[1735751698839,3.2078,3333.0,3332.9,0.30068]
[1735751699044,3.2078,3333.0,3332.9,0.31802569]
[1735751699644,3.50847,3333.0,3332.9,0.33537138]
[1735751701337,3.50847,3333.0,3332.9,0.03469138]
[1735751701936,3.2078,3333.0,3332.9,0.33537138]
[1735751702347,3.6628,3333.7,3332.9,3.99419138]
[1735751702550,0.30064,3333.4,3333.3,0.30064]
[1735751702746,0.30064,3333.4,3333.3,0.33533138]
[1735751703651,3.6628,3333.7,3333.3,0.03469138]
[1735751704048,3.96341,3333.7,3333.6,0.30062]
[1735751704245,0.30062,3333.6,3333.5,0.30062]
[1735751704848,0.30062,3333.6,3333.5,0.33531138]
[1735751705045,0.30062,3333.6,3333.5,0.03469138]
[1735751706551,3.96341,3333.7,3333.6,0.30062]
[1735751706752,3.96341,3333.7,3333.6,0.03469138]
[1735751707150,3.96341,3333.7,3333.6,0.33531138]
[1735751707549,3.96341,3333.7,3333.6,0.03469138]
[1735751707753,3.96341,3333.7,3333.6,0.33531138]
[1735751707953,3.96341,3333.7,3333.6,0.03469138]
[1735751708954,3.96341,3333.7,3333.6,0.33531138]
[1735751709357,3.2078,3333.7,3333.6,0.33531138]
[1735751709563,0.4247,3333.9,3333.6,0.03469138]
[1735751709855,0.4247,3333.9,3333.8,0.3006]
[1735751710552,5.76461817,3334.3,3333.8,2.28945715]
[1735751710756,3.2078,3334.3,3334.2,0.30056]
[1735751711153,3.2078,3334.3,3334.2,1.60296]
[1735751711353,0.4361,3334.5,3334.2,1.3024]
[1735751711552,0.30055,3334.4,3334.3,0.30055]
[1735751711758,0.4361,3334.5,3334.4,0.30054]
[1735751712058,0.73663,3334.5,3334.4,0.30054]
[1735751712256,4.0769,3334.8,3334.6,0.30052]
[1735751712257,0.30052,3334.7,3334.6,0.30052]
[1735751712452,3.2078,3334.8,3334.6,0.30052]
[1735751712652,0.30052,3334.7,3334.5,0.30053]
[1735751712853,3.2078,3334.8,3334.6,0.33521138]
[1735751713160,3.2078,3334.8,3334.6,0.03469138]
[1735751713357,3.2078,3334.8,3334.7,0.30052]
[1735751713953,3.2078,3334.8,3334.7,0.33521138]
[1735751715351,3.50831,3334.8,3334.7,0.33521138]
[1735751715949,3.50831,3334.8,3334.7,0.03469138]
[1735751716349,3.50831,3334.8,3334.7,0.33521138]
[1735751716654,3.50831,3334.8,3334.7,0.03469138]
[1735751717958,3.50831,3334.8,3334.7,0.01974294]
[1735751718861,3.2078,3334.8,3334.7,0.32026294]
[1735751719258,3.2078,3334.8,3334.7,0.01974294]
[1735751719461,3.50831,3334.8,3334.7,0.01974294]
[1735751723965,3.2078,3334.8,3334.7,0.32026294]
[1735751724164,3.50831,3334.8,3334.7,0.32026294]
[1735751727459,3.50831,3334.8,3334.7,0.01974294]
[1735751731863,3.50831,3334.8,3334.7,0.32026294]
[1735751732069,3.50831,3334.8,3334.7,0.01974294]
[1735751736266,3.93711,3334.8,3334.7,0.01974294]
[1735751744374,3.50831,3334.8,3334.7,0.01974294]
[1735751744577,3.50831,3334.8,3334.7,0.32026294]
[1735751745975,3.50831,3334.8,3334.7,0.01974294]
[1735751746576,3.50831,3334.8,3334.7,0.32026294]
[1735751747087,3.50831,3334.8,3334.7,0.01974294]
[1735751747477,3.2078,3334.8,3334.7,0.32026294]
[1735751747675,3.50831,3334.8,3334.7,0.32026294]
[1735751749177,3.2078,3334.8,3334.7,0.32026294]
[1735751754987,3.2078,3335.2,3335.1,0.30048]
[1735751755979,3.2078,3335.2,3335.1,0.32022294]
[1735751757578,3.50827,3335.2,3335.1,0.32022294]
[1735751757886,3.2078,3335.2,3335.1,0.32022294]
[1735751762794,3.2078,3335.7,3335.6,0.30044]
[1735751763092,3.2078,3335.7,3335.6,0.32018294]
[1735751766987,3.50826,3335.7,3335.6,0.01974294]
[1735751767291,4.38096,3335.7,3335.6,0.01974294]
[1735751768490,4.38096,3335.7,3335.6,0.32021294]
[1735751768993,4.38096,3335.7,3335.6,0.01974294]
[1735751769195,3.2078,3335.7,3335.6,0.01974294]
[1735751769388,3.2078,3335.7,3335.6,0.32021294]
[1735751769592,3.2078,3335.7,3335.6,0.01974294]
[1735751769593,3.50826,3335.7,3335.6,0.01974294]
[1735751770088,3.2078,3335.7,3335.6,0.32021294]
[1735751771091,3.50826,3335.7,3335.6,0.32021294]
[1735751771793,3.50826,3335.7,3335.6,0.01974294]
[1735751772500,3.50826,3335.7,3335.6,0.32021294]
[1735751772905,3.50826,3335.7,3335.6,0.01974294]
[1735751774194,0.30052,3335.1,3335.0,0.30051]
[1735751774897,0.72732,3335.1,3335.0,0.30051]
[1735751775095,0.4268,3335.1,3335.0,0.30051]
[1735751775691,0.72731,3335.1,3335.0,0.30051]
[1735751776195,0.30053,3335.0,3334.9,0.30053]
[1735751776600,0.4268,3335.1,3334.8,40.8]
[1735751776803,0.72732,3335.1,3335.0,0.30052]
[1735751777299,1.17602,3335.1,3335.0,0.30052]
[1735751777796,3.2078,3335.2,3334.7,3.95916]
[1735751778000,3.2078,3335.2,3335.1,0.30051]
[1735751778198,0.4309,3335.4,3334.9,2.28945715]
[1735751778397,0.4309,3335.4,3335.3,0.30049]
[1735751778592,0.4309,3335.4,3335.3,41.10049]
[1735751779998,3.2078,3335.7,3335.6,0.30047]
[1735751784003,3.2078,3335.7,3335.6,0.75287]
[1735751784498,3.2078,3335.7,3334.3,3.2078]
[1735751784699,3.2078,3335.2,3334.3,3.2078]
[1735751784901,0.30053,3334.9,3334.8,0.30053]
[1735751785102,0.30053,3334.9,3334.4,1.63784]
[1735751785103,0.4368,3335.1,3334.4,1.63784]
[1735751785300,0.4368,3335.1,3334.5,0.30057]
[1735751785301,0.73732,3335.1,3334.5,0.30057]
[1735751785605,0.73732,3335.1,3334.9,0.30053]
[1735751785606,0.30052,3335.0,3334.9,0.30053]
[1735751785906,0.30052,3335.0,3334.5,40.8]
[1735751786204,0.30053,3334.9,3334.8,0.30053]
[1735751786402,3.2078,3334.9,3334.8,0.30053]
[1735751788508,3.2078,3335.4,3334.8,43.08945715]
[1735751788698,3.2078,3335.4,3335.3,0.30049]
[1735751790104,3.2078,3335.4,3335.1,0.4557]
[1735751790411,3.2078,3335.4,3334.8,40.8]
[1735751790708,0.30054,3334.8,3334.7,0.30054]
[1735751790904,3.50833,3334.9,3334.8,0.30054]
[1735751791300,0.30056,3334.6,3334.5,0.30056]
[1735751791611,0.30055,3334.7,3334.6,0.30055]
[1735751792307,0.73814,3334.8,3334.1,40.8]
[1735751792506,0.73814,3334.8,3334.7,0.30055]
[1735751792706,3.94594,3334.8,3334.7,0.30055]
[1735751794707,3.6454,3334.8,3334.7,0.30055]
[1735751794910,3.2078,3334.8,3334.7,0.30055]
[1735751795105,3.2078,3334.8,3334.7,41.10055]
[1735751796409,0.4665,3335.8,3335.2,0.3005]
[1735751796410,3.2078,3335.3,3335.2,0.3005]
[1735751799113,3.2078,3335.3,3335.2,2.58995715]
[1735751804220,3.2078,3335.4,3335.2,2.28945715]
[1735751804522,3.2078,3335.4,3335.3,1.65759]
[1735751809820,0.76366,3335.7,3335.6,0.30047]
[1735751810017,3.671,3335.7,3335.6,0.30047]
[1735751811015,4.1145,3335.7,3335.6,0.30047]
[1735751811216,4.41496,3335.7,3335.6,0.30047]
[1735751813920,1.20716,3335.7,3335.6,0.30047]
[1735751814121,4.41496,3335.7,3335.6,0.30047]
[1735751815122,4.1145,3335.7,3335.6,0.30047]
[1735751815623,3.2078,3335.7,3335.6,0.30047]
[1735751815824,12.90313859,3335.9,3335.8,0.30045]
[1735751816018,12.90313859,3335.9,3335.8,2.58990715]
[1735751816420,0.4511,3336.0,3335.9,0.30044]
[1735751817019,0.4511,3336.0,3335.9,41.10044]
[1735751817321,0.75153,3336.0,3335.9,41.10044]
[1735751817724,0.75153,3336.0,3335.9,0.30044]
[1735751817929,0.4511,3336.0,3335.9,0.30044]
[1735751818221,0.75153,3336.0,3335.9,0.30044]
[1735751818829,0.4511,3336.0,3335.9,0.30044]
[1735751820218,0.75153,3336.0,3335.9,0.30044]
[1735751823031,0.4511,3336.0,3335.3,0.9252]
[1735751823228,3.2078,3335.4,3335.3,0.30049]
[1735751824035,4.5319,3335.4,3334.9,40.8]
[1735751824340,0.30051,3335.2,3335.1,0.3005]
[1735751824928,0.3005,3335.3,3335.2,0.3005]
[1735751825127,4.5319,3335.4,3334.9,40.8]
[1735751825128,4.5319,3335.4,3335.3,0.30049]
[1735751825431,4.83238,3335.4,3335.3,0.30049]
[1735751826832,4.5319,3335.4,3335.3,0.30049]
[1735751827029,4.83238,3335.4,3335.3,0.30049]
[1735751827427,4.5319,3335.4,3335.3,0.30049]
[1735751828527,4.83238,3335.4,3335.3,0.30049]
[1735751830231,0.3005,3335.3,3335.2,0.3005]
[1735751830529,0.30051,3335.2,3335.1,0.30051]
[1735751830728,0.3005,3335.3,3335.2,0.30049]
[1735751834329,3.5083,3335.3,3335.2,0.30049]
[1735751834728,0.30051,3335.2,3335.1,0.30051]
[1735751835130,3.2078,3335.3,3334.7,0.8896]
[1735751835337,0.30054,3334.9,3334.8,0.30053]
[1735751835834,3.50834,3334.9,3334.8,0.30053]
[1735751836032,3.50834,3334.9,3334.5,0.30056]
[1735751836033,0.30056,3334.6,3334.5,0.30056]
[1735751837032,0.30057,3334.4,3334.3,0.30058]
[1735751837533,0.30058,3334.3,3334.2,41.10059]
[1735751837733,0.74498,3334.3,3334.2,41.10059]
[1735751838238,0.4444,3334.3,3334.2,41.10059]
[1735751842832,0.74498,3334.3,3334.2,41.10059]
[1735751843940,0.4444,3334.3,3333.7,2.28945715]
[1735751844134,3.2078,3333.8,3333.6,1.3468]
[1735751844340,3.2078,3333.8,3333.7,0.30064]
[1735751844541,3.2078,3333.8,3333.7,41.10064]
[1735751844937,3.2078,3333.8,3333.7,0.30064]
[1735751846941,3.50843,3333.8,3333.7,0.30064]
[1735751847140,3.97243,3333.8,3333.7,0.30064]
[1735751848137,3.6718,3333.8,3333.7,0.30064]
[1735751851843,0.464,3333.8,3333.7,0.30064]
[1735751852544,0.464,3333.8,3333.6,42.1468]
[1735751852545,3.2078,3333.9,3333.8,0.30063]
[1735751855744,2.28945715,3334.9,3333.7,2.28945715]
[1735751855745,3.6763,3334.5,3333.7,5.49725715]
[1735751855945,3.6763,3334.5,3334.4,0.30057]
[1735751856252,3.6763,3334.5,3333.7,3.2078]
[1735751856551,3.2078,3334.1,3334.0,0.30061]
[1735751859349,3.6763,3334.5,3333.8,2.28945715]
[1735751859852,0.30058,3334.4,3333.8,2.28945715]
[1735751860052,0.30058,3334.4,3334.3,0.30058]
[1735751860355,3.6763,3334.5,3334.3,0.30058]
[1735751860549,3.97687,3334.5,3334.3,0.30058]
[1735751861657,3.6763,3334.5,3334.4,0.30057]
[1735751861852,3.97687,3334.5,3334.4,0.30057]
[1735751862044,3.6763,3334.5,3333.8,2.28945715]
[1735751862247,0.30058,3334.4,3334.2,0.30059]
[1735751862651,3.6763,3334.5,3334.2,0.30059]
[1735751862851,0.30057,3334.4,3334.1,0.3006]
[1735751863062,0.3006,3334.2,3334.0,0.30061]
[1735751863355,3.5084,3334.1,3334.0,0.30061]
[1735751863555,3.5084,3334.1,3333.9,0.30061]
[1735751863756,0.443,3334.0,3333.9,0.30061]
[1735751867858,3.2078,3334.1,3334.0,0.30061]
[1735751869157,3.2078,3334.1,3334.0,41.10061]
[1735751869660,3.2078,3334.1,3334.0,0.30061]
[1735751869861,3.5084,3334.1,3334.0,0.30061]
[1735751870460,3.2078,3334.1,3334.0,0.30061]
[1735751870959,3.6312,3334.1,3334.0,0.30061]
[1735751872267,0.4234,3334.1,3334.0,0.30061]
[1735751876166,0.724,3334.1,3334.0,0.30061]
[1735751877959,1.1675,3334.1,3334.0,0.30061]
[1735751879658,0.30062,3333.9,3333.8,0.30062]
[1735751880766,0.8669,3334.1,3333.6,0.4604]
[1735751880767,0.30064,3333.7,3333.6,0.4604]
[1735751880959,3.50844,3333.7,3333.6,0.4604]
[1735751881560,3.50844,3333.7,3333.6,0.76105]
[1735751882160,0.30066,3333.5,3333.4,0.4309]
[1735751882469,0.30067,3333.3,3333.2,0.30068]
[1735751883763,0.30067,3333.3,3333.0,0.9129]
[1735751883764,3.2078,3333.3,3333.0,0.9129]
[1735751883965,0.4592,3333.2,3332.9,40.8]
[1735751884165,0.4447,3333.1,3332.2,3.2078]
[1735751884366,0.30076,3332.4,3332.2,4.1045]
[1735751884560,0.30076,3332.3,3332.2,41.6967]
[1735751884760,0.30076,3332.3,3332.2,41.2475]
[1735751884961,0.30076,3332.3,3332.2,40.8]
[1735751885261,0.3008,3331.9,3331.8,0.4475]
[1735751885461,0.30082,3331.7,3331.6,0.30082]
[1735751885764,0.30083,3331.6,3331.5,40.8]
[1735751885959,3.50863,3331.6,3331.5,40.8]
[1735751886161,0.30085,3331.4,3331.3,1.16091066]
[1735751889964,0.30091,3330.7,3330.5,0.30092]
[1735751890163,3.50871,3330.7,3330.5,0.30092]
[1735751890359,3.2078,3330.7,3330.5,40.8]
[1735751890568,3.50871,3330.7,3330.5,0.30092]
[1735751890868,3.2078,3330.7,3330.6,0.30092]
[1735751891262,3.2078,3330.7,3330.2,0.908]
[1735751891563,0.8823,3331.5,3330.1,0.30096]
[1735751891564,3.2078,3330.3,3330.1,0.30096]
[1735751891770,3.50875,3330.3,3330.1,41.10096]
[1735751892368,3.2078,3330.3,3330.1,0.30096]
[1735751892576,3.2078,3330.3,3330.2,2.59040715]
[1735751892869,3.2078,3330.7,3330.6,0.30092]
[1735751893073,3.2078,3330.7,3330.2,43.08945715]
[1735751893269,3.2078,3330.7,3330.5,0.30092]
[1735751893571,3.50871,3330.7,3330.5,0.30092]
[1735751893972,3.50871,3330.7,3330.2,43.08945715]
[1735751894173,0.30093,3330.6,3330.3,0.30094]
[1735751895066,3.2078,3330.7,3330.2,43.08945715]
[1735751895277,3.50874,3330.3,3330.2,2.28945715]
[1735751895474,3.2078,3330.3,3330.2,2.28945715]
[1735751896170,3.2078,3330.3,3330.2,2.59040715]
[1735751899271,3.2078,3330.7,3330.2,2.28945715]
[1735751899476,3.2078,3330.7,3330.4,0.30093]
[1735751899772,3.2078,3330.7,3330.3,0.4298]
[1735751899968,0.30092,3330.6,3330.4,0.30094]
[1735751900176,0.30093,3330.5,3330.3,0.73074]
[1735751900476,3.2078,3330.7,3330.3,0.4298]
[1735751900677,0.30092,3330.6,3330.4,0.30093]
[1735751901174,3.2078,3330.7,3330.3,0.4298]
[1735751901373,0.30094,3330.3,3330.2,2.59040715]
[1735751901671,3.2078,3330.3,3330.2,2.59040715]
[1735751902079,3.2078,3330.3,3330.2,2.28945715]
[1735751902273,3.50874,3330.3,3330.0,10.0]
[1735751902473,3.50874,3330.3,3330.2,0.30095]
[1735751902673,3.2078,3330.3,3330.2,0.30095]
[1735751902878,3.2078,3330.3,3330.0,10.0]
[1735751902879,3.50875,3330.3,3330.0,10.0]
[1735751903080,3.2078,3330.3,3330.0,10.0]
[1735751903378,3.2078,3330.3,3330.2,0.30095]
[1735751903576,3.50871,3330.7,3330.6,0.30092]
[1735751903782,3.2078,3330.7,3330.6,0.30092]
[1735751906780,3.50871,3330.7,3330.6,0.30092]
[1735751907280,3.2078,3330.7,3330.6,0.30092]
[1735751910483,3.50871,3330.7,3330.6,0.30092]
[1735751911385,0.30092,3330.6,3330.5,0.30092]
[1735751911783,0.30093,3330.5,3330.4,0.30093]
[1735751911990,0.30094,3330.4,3330.3,0.75664]
[1735751912286,0.30094,3330.3,3330.2,0.30095]
[1735751912491,3.2078,3330.3,3330.2,0.30095]
[1735751912785,0.30096,3330.1,3330.0,10.4281]
[1735751913087,0.30096,3330.1,3330.0,10.0]
[1735751913882,3.2078,3330.3,3330.2,0.30095]
[1735751914282,3.2078,3330.3,3330.0,10.435]
[1735751914488,3.2078,3330.3,3330.2,0.30095]
[1735751918693,3.50871,3330.7,3330.6,0.30092]
[1735751918894,3.2078,3330.7,3330.6,0.30092]
[1735751920695,3.2078,3330.7,3330.5,0.4384]
[1735751920902,0.30092,3330.6,3330.5,0.4384]
[1735751921200,0.30094,3330.4,3330.2,0.30095]
[1735751921399,3.2078,3330.3,3330.2,0.74495]
[1735751922797,0.30096,3330.1,3330.0,10.0]
[1735751923098,2.59041715,3330.1,3330.0,8.74081066]
[1735751923289,7.59041715,3330.1,3330.0,8.74081066]
[1735751923794,0.30096,3330.1,3330.0,8.74081066]
[1735751924293,5.30096,3330.1,3330.0,8.74081066]
[1735751924496,7.83527124,3330.1,3330.0,8.74081066]
[1735751924695,7.58856965,3330.1,3330.0,8.74081066]
[1735751925200,7.58856965,3330.1,3330.0,8.10613066]
[1735751925691,2.58856965,3330.1,3330.0,8.10613066]
[1735751925893,7.58856965,3330.1,3330.0,8.10613066]
[1735751926602,7.83416195,3330.1,3330.0,8.10613066]
[1735751927500,7.83416195,3330.1,3330.0,7.46613066]
[1735751928202,7.83416195,3330.1,3330.0,6.73123066]
[1735751928404,7.83416195,3330.1,3330.0,6.02743066]
[1735751929801,0.3011,3328.6,3328.2,0.30113]
[1735751930009,3.2078,3328.3,3328.2,0.30113]
[1735751933599,3.2078,3328.3,3327.9,0.4331]
[1735751934002,3.2078,3328.3,3328.1,0.30114]
[1735751934198,3.2078,3328.3,3327.9,0.4331]
[1735751934701,0.30113,3328.2,3327.9,0.73425]
[1735751934905,3.50893,3328.3,3328.1,0.30114]
[1735751935209,3.2078,3328.3,3328.0,0.30115]
[1735751935409,0.30114,3328.2,3328.0,0.30115]
[1735751935705,0.30114,3328.2,3327.1,3.96087]
[1735751935706,13.3069143,3328.1,3326.0,3.2078]
[1735751935914,2.28945715,3326.2,3325.7,4.71709522]
[1735751936209,3.2078,3326.5,3325.7,5.01844522]
[1735751936210,3.2078,3326.0,3325.7,5.01844522]
[1735751936505,3.2078,3326.0,3325.7,4.71709522]
[1735751937005,0.30135,3325.8,3325.7,4.71709522]
[1735751937214,0.30135,3325.8,3325.7,1.49171522]
[1735751937407,0.30135,3325.8,3325.4,10.61928675]
[1735751937408,3.2078,3326.0,3325.4,1.1850963]
[1735751937599,3.2078,3325.5,3325.4,1.1850963]
[1735751938308,3.50918,3325.5,3325.4,1.1850963]
[1735751938607,3.2078,3325.5,3325.4,1.1850963]
[1735751938813,2.5031,3325.5,3325.4,1.4864863]
[1735751939011,3.2078,3326.2,3325.4,1.1850963]
[1735751939208,3.2078,3325.8,3325.4,1.1850963]
[1735751939405,3.2078,3325.8,3325.6,0.30136]
[1735751939712,3.2078,3325.8,3325.4,1.1850963]
[1735751940013,3.2078,3325.8,3325.6,0.30136]
[1735751940408,3.2078,3325.8,3325.7,41.10136]
[1735751940814,2.28945715,3326.6,3326.3,0.3013]
[1735751941110,3.2078,3326.7,3326.4,0.3013]
[1735751941309,3.2078,3326.7,3326.5,0.30128]
[1735751941513,3.2078,3326.7,3326.4,0.30129]
[1735751942009,2.28945715,3327.5,3326.6,0.30128]
[1735751942202,2.28945715,3327.5,3326.2,3.2078]
[1735751942203,2.28945715,3327.5,3327.2,0.30122]
[1735751942405,2.28945715,3327.5,3327.1,0.30123]
[1735751942605,2.28945715,3327.5,3326.9,0.30125]
[1735751942801,5.79845715,3327.5,3326.9,0.30125]
[1735751943008,2.28945715,3327.2,3326.3,0.4663]
[1735751943208,2.28945715,3326.9,3326.5,0.30128]
[1735751943707,2.28945715,3326.9,3326.3,0.4663]
[1735751943910,2.28945715,3326.9,3326.8,0.30126]
[1735751944100,3.2078,3327.5,3326.5,3.2078]
[1735751944305,2.95794195,3327.3,3326.5,3.2078]
[1735751944501,3.2078,3327.1,3326.4,0.4697]
[1735751944701,2.95794195,3326.9,3326.4,0.4697]
[1735751945609,2.95794195,3327.3,3326.5,3.2078]
[1735751945812,4.4148,3327.5,3327.2,0.30122]
[1735751946003,4.4148,3327.5,3326.4,0.4697]
[1735751946207,4.4148,3327.5,3327.4,0.30121]
[1735751946408,2.95794195,3328.1,3327.9,0.30116]
[1735751946610,2.95794195,3328.1,3328.0,0.30115]
[1735751947412,2.95794195,3328.1,3327.9,0.30116]
[1735751947613,3.50895,3328.0,3327.3,0.8769]
[1735751947911,3.50895,3328.0,3327.7,0.30118]
[1735751947912,3.2078,3328.0,3327.7,0.30118]
[1735751948608,3.2078,3328.0,3327.3,0.8769]
[1735751948609,3.2078,3328.0,3327.8,0.30117]
[1735751948808,3.2078,3328.0,3327.9,0.30116]
[1735751949014,3.2078,3328.0,3327.7,0.30117]
[1735751949511,3.2078,3328.0,3327.8,0.30116]
[1735751949715,3.2078,3328.0,3327.3,0.8769]
[1735751949914,0.30117,3327.8,3327.5,0.30119]
[1735751950109,0.30117,3327.9,3327.5,0.30119]
[1735751950418,3.2078,3328.0,3327.3,0.8769]
[1735751950607,0.30117,3327.8,3327.3,0.8769]
[1735751950811,3.50896,3328.0,3327.3,0.8769]
[1735751951116,0.30117,3327.9,3327.5,0.30119]
[1735751951317,0.30117,3327.8,3327.5,0.30119]
[1735751951513,0.30117,3327.8,3327.3,0.8769]
[1735751951709,3.50896,3328.0,3327.7,0.30118]
[1735751951915,0.30116,3327.9,3327.6,0.30118]
[1735751952115,3.2078,3328.0,3327.7,0.30118]
[1735751953010,3.2078,3328.0,3327.8,0.30117]
[1735751953210,3.2078,3328.0,3327.3,0.4597]
[1735751953712,3.2078,3328.0,3327.9,0.30116]
[1735751954819,3.2078,3328.0,3327.3,0.4597]
[1735751955215,0.30116,3327.9,3327.6,0.30118]
[1735751955411,3.2078,3328.0,3327.3,0.4597]
[1735751955612,3.2078,3327.6,3327.0,0.4326]
[1735751955813,3.2078,3327.2,3327.0,0.4326]
[1735751956013,3.50903,3327.2,3327.0,0.4326]
[1735751956514,0.30123,3327.1,3327.0,0.4326]
[1735751956710,3.2078,3327.2,3326.6,3.2078]
[1735751956711,9.4558,3327.2,3326.6,3.2078]
[1735751956917,3.50908,3326.7,3325.8,0.75339]
[1735751957211,3.50908,3326.7,3326.6,0.30128]
[1735751957212,3.2078,3326.7,3326.6,0.30128]
[1735751957410,3.2078,3326.7,3325.8,3.2078]
[1735751957610,3.2078,3326.8,3325.8,3.2078]
[1735751957807,3.2078,3326.8,3325.8,44.0078]
[1735751958007,0.30122,3326.6,3325.8,44.0078]
[1735751958213,2.95794195,3326.9,3326.3,3.2078]
[1735751958409,0.3012,3326.8,3326.5,0.30122]
[1735751958716,3.19417055,3326.9,3326.1,3.2078]
[1735751958922,0.30122,3326.6,3326.3,0.30124]
[1735751959120,3.2078,3326.7,3326.1,3.2078]
[1735751959317,3.19417055,3326.9,3326.1,3.2078]
[1735751959520,0.30122,3326.6,3326.3,0.30124]
[1735751959713,0.2362286,3326.9,3326.1,3.2078]
[1735751959914,3.50898,3327.1,3326.8,0.30119]
[1735751960212,0.30118,3327.1,3326.6,0.30122]
[1735751960417,0.30118,3327.1,3326.8,0.30119]
[1735751960617,2.95794195,3327.3,3326.7,0.4354]
[1735751960819,3.2078,3327.5,3326.7,0.4354]
[1735751961023,3.2078,3327.1,3326.7,0.4354]
[1735751961217,4.19651599,3327.5,3326.7,0.4354]
[1735751961520,3.44366599,3327.5,3326.8,0.3012]
[1735751961719,0.30118,3327.1,3326.7,0.4354]
[1735751962018,0.30117,3327.2,3327.0,0.30118]
[1735751962413,0.30117,3327.2,3327.0,3.50898]
[1735751963022,3.2078,3327.7,3327.0,3.2078]
[1735751963215,3.41954195,3328.1,3327.4,3.2078]
[1735751963412,3.66068114,3328.1,3327.4,3.2078]
[1735751963618,0.30116,3327.3,3327.1,0.30117]
[1735751963820,3.2078,3327.6,3326.8,0.4599]
[1735751964124,0.30117,3327.2,3327.0,0.30118]
[1735751964320,0.30117,3327.2,3326.9,0.30119]
[1735751964520,3.2078,3327.6,3326.9,3.2078]
[1735751964721,3.66068114,3328.1,3327.3,0.30115]
[1735751964722,0.30114,3327.5,3327.3,0.30115]
[1735751964915,3.2078,3328.0,3327.2,0.30116]